bitfinex-derivatives/quotes_BTCF0:USTF0_20240903
["timestamp","ask_amount","ask_price","bid_price","bid_amount"]
[1725359554399,0.132,59178.0,59177.0,0.21350912]
[1725359555894,0.002,59178.0,59177.0,0.21350912]
[1725359556092,0.002,59178.0,59177.0,0.21350793]
[1725359558208,0.122,59178.0,59177.0,0.12901193]
[1725359558514,0.122,59178.0,59177.0,0.06732521]
[1725359558515,0.2571,59178.0,59177.0,0.06732521]
[1725359560012,0.3971,59178.0,59177.0,0.06732521]
[1725359561219,0.3971,59178.0,59177.0,0.00025335]
[1725359563518,0.7579,59178.0,59177.0,0.00025335]
[1725359572609,0.842395,59178.0,59177.0,0.00025335]
[1725359576722,0.481595,59178.0,59177.0,0.00025335]
[1725359579629,0.251595,59178.0,59177.0,0.08474935]
[1725359580023,0.341595,59178.0,59177.0,0.08474935]
[1725359580417,0.341595,59178.0,59177.0,0.06732521]
[1725359580619,1.302395,59178.0,59175.0,0.05030385]
[1725359580823,1.302395,59178.0,59173.0,0.05030385]
[1725359580824,0.0845,59174.0,59173.0,0.05030385]
[1725359581020,0.0845,59174.0,59171.0,0.05030385]
[1725359581021,0.2945,59174.0,59171.0,0.05030385]
[1725359581225,0.174903,59172.0,59171.0,0.05030385]
[1725359581426,0.294903,59172.0,59171.0,0.05030385]
[1725359581719,0.084505,59171.0,59170.0,0.05030385]
[1725359581919,0.4712,59171.0,59170.0,0.0503161]
[1725359582129,0.549705,59171.0,59170.0,0.0503161]
[1725359582526,0.62521,59171.0,59170.0,0.0503161]
[1725359582719,0.084506,59170.0,59169.0,0.0503161]
[1725359582920,0.886412,59170.0,59169.0,0.0503161]
[1725359583229,0.084509,59168.0,59166.0,0.00025335]
[1725359583530,0.1287,59167.0,59166.0,0.00025335]
[1725359583724,0.91476,59167.0,59166.0,0.00025335]
[1725359583929,1.51476,59167.0,59166.0,0.00025335]
[1725359586037,1.51476,59167.0,59158.0,0.088423]
[1725359586038,0.084522,59159.0,59158.0,0.088423]
[1725359586332,0.194922,59159.0,59158.0,0.084523]
[1725359586529,0.2004,59159.0,59158.0,0.084523]
[1725359590633,0.284922,59159.0,59158.0,0.084523]
[1725359593125,1.30752,59159.0,59156.0,0.0503161]
[1725359593332,0.084529,59154.0,59153.0,0.08469863]
[1725359593630,0.5712,59154.0,59153.0,0.08469863]
[1725359593825,0.655329,59154.0,59153.0,0.08469863]
[1725359594743,0.656329,59154.0,59153.0,0.08469863]
[1725359595037,0.5718,59154.0,59153.0,0.08469863]
[1725359595538,0.656329,59154.0,59153.0,0.08469863]
[1725359595928,0.657329,59154.0,59153.0,0.08469863]
[1725359597331,0.657329,59154.0,59153.0,0.00016963]
[1725359601744,0.122,59154.0,59153.0,0.00016963]
[1725359601932,0.0004,59157.0,59156.0,0.084526]
[1725359602133,0.0004,59157.0,59156.0,1.704526]
[1725359602334,0.0004,59157.0,59156.0,2.812046]
[1725359602536,0.00025335,59163.0,59162.0,0.084517]
[1725359602731,0.00025335,59163.0,59162.0,0.174917]
[1725359602732,0.01025335,59163.0,59162.0,0.174917]
[1725359603243,0.01025335,59163.0,59162.0,0.084917]
[1725359603952,0.01325335,59163.0,59162.0,0.084917]
[1725359604841,0.01625335,59163.0,59162.0,0.084917]
[1725359605540,0.01625335,59163.0,59162.0,0.13506592]
[1725359605734,0.01625335,59163.0,59162.0,0.18426592]
[1725359606552,0.01625335,59163.0,59162.0,0.134117]
[1725359606741,0.01625335,59163.0,59162.0,0.0004]
[1725359606742,0.33076935,59163.0,59162.0,0.0004]
[1725359608451,0.41528535,59163.0,59162.0,0.0004]
[1725359609447,0.92236535,59163.0,59162.0,0.0004]
[1725359609645,1.52236535,59163.0,59162.0,0.0004]
[1725359610647,1.52799716,59163.0,59162.0,0.0004]
[1725359611835,1.75799716,59163.0,59162.0,0.0004]
[1725359612046,1.52799716,59163.0,59162.0,0.0004]
[1725359612935,1.53799716,59163.0,59162.0,0.0004]
[1725359613139,1.52799716,59163.0,59162.0,0.0004]
[1725359614550,1.21348116,59163.0,59162.0,0.0004]
[1725359614753,0.01625335,59163.0,59162.0,0.084917]
[1725359615453,0.01625335,59163.0,59162.0,0.177917]
[1725359616241,0.01625335,59163.0,59162.0,0.24493061]
[1725359616651,0.01625335,59163.0,59162.0,0.24493037]
[1725359617251,0.01625335,59163.0,59162.0,0.177917]
[1725359620143,0.00114665,59163.0,59162.0,1.58201037]
[1725359620448,0.00114665,59163.0,59162.0,1.514997]
[1725359620644,0.00114665,59163.0,59162.0,1.72760873]
[1725359621256,0.00114665,59163.0,59162.0,1.59882052]
[1725359621450,0.00114665,59163.0,59162.0,1.514997]
[1725359621755,0.12114665,59163.0,59162.0,0.177917]
[1725359627355,0.12114665,59163.0,59162.0,0.178917]
[1725359627757,0.12,59163.0,59162.0,0.178917]
[1725359628657,0.12,59163.0,59162.0,0.18490871]
[1725359628959,0.12,59163.0,59162.0,0.177917]
[1725359629155,0.121,59163.0,59162.0,0.177917]
[1725359637357,0.12,59163.0,59162.0,0.179917]
[1725359637761,0.12,59163.0,59162.0,0.177917]
[1725359638259,0.121,59163.0,59162.0,0.177917]
[1725359641977,0.211,59163.0,59162.0,0.177917]
[1725359643864,0.211,59163.0,59162.0,0.084917]
[1725359644464,0.211,59163.0,59162.0,0.21371395]
[1725359647884,0.295516,59163.0,59162.0,0.12919695]
[1725359648067,0.25323076,59163.0,59162.0,0.12919695]
[1725359648668,0.25223076,59163.0,59162.0,0.12919695]
[1725359649570,0.25523076,59163.0,59162.0,0.12919695]
[1725359649768,0.61603076,59163.0,59162.0,0.0004]
[1725359650368,0.61603076,59163.0,59162.0,0.06756173]
[1725359650770,0.61603076,59163.0,59162.0,0.06856173]
[1725359651172,0.61603076,59163.0,59162.0,0.0004]
[1725359651474,0.61803076,59163.0,59162.0,0.06755047]
[1725359652677,0.61803076,59163.0,59162.0,0.0004]
[1725359653970,1.72511076,59163.0,59162.0,0.0004]
[1725359654671,1.80962676,59163.0,59162.0,0.0004]
[1725359656378,1.80962676,59163.0,59153.0,0.00016963]
[1725359656379,0.084529,59154.0,59153.0,0.08469863]
[1725359656673,0.635729,59154.0,59153.0,0.08469863]
[1725359657372,0.635729,59154.0,59153.0,0.00016963]
[1725359657974,0.637729,59154.0,59153.0,0.00216963]
[1725359659574,1.744889,59154.0,59153.0,0.00216963]
[1725359660877,1.144889,59154.0,59153.0,0.00216963]
[1725359661478,0.5532,59154.0,59153.0,0.00216963]
[1725359661877,0.5532,59154.0,59153.0,0.05252283]
[1725359662469,0.5532,59154.0,59153.0,0.13705283]
[1725359662470,0.4632,59154.0,59153.0,0.13705283]
[1725359662675,0.5532,59154.0,59153.0,0.13705283]
[1725359664778,0.5532,59154.0,59153.0,0.08669963]
[1725359665288,0.5532,59154.0,59153.0,0.13705283]
[1725359666071,0.6932,59154.0,59153.0,0.08669963]
[1725359666270,0.777729,59154.0,59153.0,0.00216963]
[1725359670375,0.78365217,59154.0,59153.0,0.00216963]
[1725359671669,2.02534117,59154.0,59153.0,0.00216963]
[1725359672575,1.97534117,59154.0,59153.0,0.00216963]
[1725359672884,1.80628317,59154.0,59146.0,0.05027243]
[1725359673079,0.8212,59147.0,59142.0,0.084545]
[1725359673274,0.084546,59142.0,59134.0,0.0039]
[1725359673591,0.084546,59142.0,59133.0,0.05029011]
[1725359673592,0.23,59139.0,59133.0,0.05029011]
[1725359673784,0.35,59139.0,59138.0,0.084552]
[1725359674885,0.35,59139.0,59138.0,0.130652]
[1725359675087,0.43555,59139.0,59138.0,0.0461]
[1725359675584,0.43655,59139.0,59138.0,0.0461]
[1725359677388,0.352,59139.0,59138.0,0.0461]
[1725359680888,0.122,59139.0,59138.0,0.0461]
[1725359681084,0.352,59139.0,59138.0,0.130652]
[1725359684184,0.122,59139.0,59138.0,0.130652]
[1725359684378,0.002,59139.0,59138.0,1.598732]
[1725359684591,0.00025357,59144.0,59143.0,0.084545]
[1725359684786,0.00025357,59144.0,59143.0,0.675745]
[1725359684987,0.00025357,59144.0,59143.0,1.182985]
[1725359685187,0.00025357,59144.0,59143.0,1.26753]
[1725359685387,0.00025357,59144.0,59143.0,1.782985]
[1725359685690,0.3608,59154.0,59146.0,0.08454]
[1725359685888,0.3608,59154.0,59146.0,0.38192352]
[1725359686198,0.3608,59161.0,59146.0,1.42214]
[1725359686497,0.13,59161.0,59160.0,0.31492]
[1725359686791,0.00025357,59166.0,59161.0,0.084518]
[1725359686986,0.07025357,59166.0,59165.0,0.0004]
[1725359688179,0.08825357,59166.0,59165.0,0.0004]
[1725359688389,0.08825357,59166.0,59165.0,0.314913]
[1725359688390,0.01825357,59166.0,59165.0,0.314913]
[1725359688780,0.00925357,59166.0,59165.0,0.314913]
[1725359688988,0.01525357,59166.0,59165.0,0.36514633]
[1725359689482,0.01525357,59166.0,59165.0,0.314913]
[1725359690188,0.01225357,59166.0,59165.0,0.314913]
[1725359692088,0.32676557,59166.0,59165.0,0.0004]
[1725359692295,0.43676557,59166.0,59165.0,0.0004]
[1725359698903,0.35225357,59166.0,59165.0,0.0004]
[1725359699205,0.12225357,59166.0,59165.0,0.084913]
[1725359701514,0.12225357,59166.0,59165.0,0.0004]
[1725359702109,0.20676557,59166.0,59165.0,0.0004]
[1725359702412,0.56756557,59166.0,59165.0,0.0004]
[1725359702907,0.70037757,59166.0,59165.0,0.0004]
[1725359705108,1.20741757,59166.0,59165.0,0.0004]
[1725359706810,1.21342767,59166.0,59165.0,0.0004]
[1725359708010,0.70638767,59166.0,59165.0,0.0004]
[1725359709622,0.34558767,59166.0,59165.0,0.0004]
[1725359709919,1.06718767,59166.0,59165.0,0.0004]
[1725359714715,1.15169967,59166.0,59165.0,0.0004]
[1725359716519,1.16169967,59166.0,59165.0,0.0004]
[1725359726023,1.16169967,59166.0,59155.0,0.00025357]
[1725359726024,0.084523,59158.0,59156.0,0.05023333]
[1725359726214,0.084526,59156.0,59155.0,0.0504869]
[1725359726527,0.194526,59156.0,59155.0,0.00025357]
[1725359727118,0.363578,59156.0,59155.0,0.00025357]
[1725359727424,0.364578,59156.0,59155.0,0.00125357]
[1725359727925,0.365578,59156.0,59155.0,0.00425357]
[1725359730025,0.872698,59156.0,59155.0,0.00425357]
[1725359730648,0.87870861,59156.0,59155.0,0.00425357]
[1725359731127,0.37158861,59156.0,59155.0,0.00425357]
[1725359731422,0.169074,59148.0,59147.0,0.0039]
[1725359731728,0.084547,59141.0,59140.0,0.0469]
[1725359731926,0.414947,59141.0,59140.0,0.0469]
[1725359732516,0.413947,59141.0,59140.0,0.0469]
[1725359732721,0.498494,59141.0,59140.0,0.0469]
[1725359733427,0.498494,59141.0,59140.0,0.0479]
[1725359739834,0.859294,59141.0,59140.0,0.0479]
[1725359742427,0.859294,59141.0,59140.0,0.001]
[1725359742632,0.943841,59141.0,59140.0,0.001]
[1725359742833,1.043841,59141.0,59140.0,0.001]
[1725359743229,0.253659,59137.0,59136.0,0.0474]
[1725359743436,0.954859,59137.0,59136.0,0.0474]
[1725359744731,0.955859,59137.0,59136.0,0.0474]
[1725359744930,0.956859,59137.0,59136.0,0.0474]
[1725359745429,1.006859,59137.0,59136.0,0.0474]
[1725359745629,0.956859,59137.0,59136.0,0.0474]
[1725359746034,1.317659,59137.0,59136.0,0.0474]
[1725359746521,0.253665,59136.0,59135.0,0.00025357]
[1725359746726,0.424065,59136.0,59135.0,0.00025357]
[1725359747334,0.253701,59127.0,59126.0,0.0039]
[1725359747635,0.253701,59127.0,59120.0,0.4076]
[1725359747636,1.122,59127.0,59120.0,0.0468]
[1725359747838,0.5912,59121.0,59120.0,0.0468]
[1725359748032,0.7112,59121.0,59120.0,0.0468]
[1725359748235,0.880352,59121.0,59120.0,0.0468]
[1725359750735,0.881352,59121.0,59120.0,0.0468]
[1725359750935,0.16916,59118.0,59117.0,0.0459]
[1725359751138,0.51956,59118.0,59117.0,0.0459]
[1725359751632,0.084589,59112.0,59111.0,0.0906]
[1725359751833,0.314989,59112.0,59111.0,0.0906]
[1725359754429,0.315989,59112.0,59111.0,0.0906]
[1725359754634,0.316989,59112.0,59111.0,0.0906]
[1725359756041,0.511578,59112.0,59111.0,0.0906]
[1725359757441,0.510578,59112.0,59111.0,0.0906]
[1725359757739,0.510578,59112.0,59104.0,0.05023333]
[1725359757740,0.3414,59112.0,59104.0,0.05023333]
[1725359757946,0.084596,59107.0,59106.0,0.0945]
[1725359758243,0.17226823,59107.0,59106.0,0.094]
[1725359759146,0.40226823,59107.0,59106.0,0.094]
[1725359759840,0.48686423,59107.0,59106.0,0.094]
[1725359760234,0.49386423,59107.0,59106.0,0.094]
[1725359760641,0.50086423,59107.0,59106.0,0.094]
[1725359762447,0.084608,59099.0,59098.0,0.0039]
[1725359762641,0.7112,59099.0,59096.0,0.096]
[1725359762848,0.08501,59097.0,59096.0,0.096]
[1725359763150,0.08461,59097.0,59096.0,0.096]
[1725359764839,0.08561,59097.0,59096.0,0.096]
[1725359765440,0.28022,59097.0,59096.0,0.096]
[1725359767348,0.28022,59097.0,59096.0,0.0495]
[1725359767746,0.19561,59097.0,59096.0,0.0495]
[1725359768255,0.111,59097.0,59096.0,0.0495]
[1725359768853,0.19561,59097.0,59096.0,0.0495]
[1725359769558,0.084612,59096.0,59095.0,0.09720089]
[1725359769761,0.435012,59096.0,59095.0,0.047]
[1725359770365,0.435012,59096.0,59095.0,0.09720089]
[1725359770764,0.520624,59096.0,59095.0,0.047]
[1725359771264,0.521624,59096.0,59095.0,0.047]
[1725359772063,0.169226,59095.0,59093.0,0.06697778]
[1725359772361,0.169226,59095.0,59087.0,0.07087092]
[1725359772362,0.084619,59091.0,59087.0,0.07087092]
[1725359772568,0.675823,59088.0,59086.0,0.06697092]
[1725359772866,0.16965,59087.0,59086.0,0.06697092]
[1725359773061,0.169252,59086.0,59085.0,0.11517092]
[1725359773270,0.289652,59086.0,59085.0,0.11517092]
[1725359774360,0.289652,59086.0,59085.0,0.0482]
[1725359775162,0.291652,59086.0,59085.0,0.0482]
[1725359775954,0.1224,59086.0,59085.0,0.132828]
[1725359776169,0.207026,59086.0,59085.0,0.132828]
[1725359776369,0.15621351,59086.0,59085.0,0.132828]
[1725359776864,0.07158751,59086.0,59085.0,1.08349]
[1725359777064,0.0024,59086.0,59085.0,0.62260761]
[1725359777268,0.0024,59086.0,59085.0,0.26180761]
[1725359779173,0.1324,59086.0,59085.0,0.26180761]
[1725359780170,0.0024,59086.0,59085.0,0.26180761]
[1725359780369,0.23,59093.0,59092.0,0.084618]
[1725359780566,0.23,59093.0,59092.0,0.21359761]
[1725359780567,0.28,59093.0,59092.0,0.21359761]
[1725359780766,0.28,59093.0,59092.0,0.21399761]
[1725359781665,0.281,59093.0,59092.0,0.21399761]
[1725359781874,0.282,59093.0,59092.0,0.21399761]
[1725359782475,0.282,59093.0,59092.0,0.36223498]
[1725359782675,0.282,59093.0,59092.0,0.26169761]
[1725359783164,0.282,59093.0,59092.0,0.30749761]
[1725359786966,0.366616,59093.0,59092.0,0.178518]
[1725359787172,0.366616,59093.0,59092.0,0.30747513]
[1725359788470,0.366616,59093.0,59092.0,0.22285713]
[1725359789677,0.812032,59093.0,59092.0,0.0004]
[1725359790080,0.812032,59093.0,59092.0,0.06765243]
[1725359790578,0.812032,59093.0,59092.0,0.06765224]
[1725359791380,0.582032,59093.0,59092.0,0.06765224]
[1725359791671,0.812032,59093.0,59092.0,0.06765224]
[1725359792381,0.812032,59093.0,59092.0,0.0004]
[1725359793484,0.812032,59093.0,59092.0,0.06770346]
[1725359793879,0.812032,59093.0,59092.0,0.0004]
[1725359794115,0.812032,59093.0,59092.0,0.06770125]
[1725359794287,0.812032,59093.0,59092.0,0.0004]
[1725359794687,0.896648,59093.0,59092.0,0.0004]
[1725359797279,0.666648,59093.0,59092.0,0.0004]
[1725359797588,0.896648,59093.0,59092.0,0.0004]
[1725359798486,0.896648,59093.0,59092.0,0.05089103]
[1725359798881,0.812032,59093.0,59092.0,0.05089103]
[1725359799080,0.727416,59093.0,59092.0,0.05089103]
[1725359799283,0.727416,59093.0,59092.0,0.0004]
[1725359799483,0.727416,59093.0,59092.0,0.05089208]
[1725359799691,0.497416,59093.0,59092.0,0.085018]
[1725359800081,0.497416,59093.0,59092.0,0.15231925]
[1725359800283,0.727416,59093.0,59092.0,0.15231925]
[1725359800481,0.727416,59093.0,59092.0,0.085018]
[1725359801891,0.727416,59093.0,59092.0,0.0004]
[1725359804224,0.002,59093.0,59092.0,1.361934]
[1725359804397,0.3608,59105.0,59100.0,0.084606]
[1725359804699,0.3608,59110.0,59100.0,0.39910507]
[1725359804991,0.3608,59110.0,59100.0,3.08153689]
[1725359805397,0.3608,59110.0,59100.0,3.16556745]
[1725359805592,0.00425378,59101.0,59100.0,3.1655731]
[1725359805789,0.00425378,59101.0,59100.0,3.1661397]
[1725359806093,0.00425378,59101.0,59100.0,3.0815337]
[1725359806885,0.00725378,59101.0,59100.0,3.0815337]
[1725359807390,0.00725378,59101.0,59100.0,3.16548687]
[1725359807592,0.00025378,59101.0,59100.0,3.16548687]
[1725359807795,0.00325378,59101.0,59100.0,3.16548687]
[1725359808395,0.00325378,59101.0,59100.0,3.03655917]
[1725359808789,0.00325378,59101.0,59100.0,2.952606]
[1725359810197,0.00325378,59101.0,59100.0,2.9589137]
[1725359811191,0.00325378,59101.0,59100.0,3.3197137]
[1725359813389,0.00325378,59101.0,59100.0,3.38678608]
[1725359813898,0.00325378,59101.0,59100.0,1.85678608]
[1725359815798,0.00325378,59101.0,59100.0,1.24000732]
[1725359816095,0.11325378,59101.0,59100.0,0.73240732]
[1725359816799,0.11325378,59101.0,59100.0,0.6821137]
[1725359816995,0.11325378,59101.0,59100.0,0.4521137]
[1725359817299,0.19785878,59101.0,59100.0,0.3612]
[1725359819087,0.11325378,59101.0,59100.0,0.3612]
[1725359819393,0.00325378,59101.0,59100.0,0.675806]
[1725359819588,0.00325378,59101.0,59100.0,1.783406]
[1725359820693,0.00325378,59101.0,59100.0,1.183406]
[1725359821089,0.00325378,59101.0,59100.0,1.783406]
[1725359821487,0.00325378,59101.0,59100.0,1.23369962]
[1725359822198,0.00325378,59101.0,59100.0,1.183406]
[1725359822501,0.00325378,59101.0,59100.0,1.2337157]
[1725359823208,0.00325378,59101.0,59100.0,0.7261157]
[1725359825501,0.00325378,59101.0,59100.0,0.675806]
[1725359826099,0.00325378,59101.0,59100.0,0.72614385]
[1725359826405,0.00325378,59101.0,59100.0,0.675806]
[1725359828809,0.00325378,59101.0,59100.0,0.74298739]
[1725359829000,0.00325378,59101.0,59100.0,0.675806]
[1725359829302,0.00325378,59101.0,59100.0,1.183406]
[1725359830908,0.00325378,59101.0,59100.0,0.675806]
[1725359832203,0.00325378,59101.0,59100.0,0.75975917]
[1725359832403,0.00325378,59101.0,59100.0,0.80473613]
[1725359833303,0.13325378,59101.0,59100.0,0.80473613]
[1725359836710,0.13325378,59101.0,59100.0,0.90565501]
[1725359837104,0.13325378,59101.0,59100.0,0.80473613]
[1725359837408,0.13325378,59101.0,59100.0,0.90565501]
[1725359838108,0.13325378,59101.0,59100.0,0.76565501]
[1725359838906,0.13325378,59101.0,59100.0,0.66473613]
[1725359839315,0.13325378,59101.0,59100.0,0.76565501]
[1725359840515,0.13325378,59101.0,59100.0,0.76565659]
[1725359843313,0.13325378,59101.0,59100.0,0.66473771]
[1725359843513,0.13325378,59101.0,59100.0,0.76587705]
[1725359845115,0.13325378,59101.0,59100.0,0.40507705]
[1725359845413,0.13325378,59101.0,59100.0,0.31507705]
[1725359847513,0.13325378,59101.0,59100.0,0.40507705]
[1725359848910,0.13325378,59101.0,59100.0,0.30393771]
[1725359849740,0.13125378,59101.0,59100.0,0.30393771]
[1725359850320,0.13025378,59101.0,59100.0,0.30393771]
[1725359850518,0.13125378,59101.0,59100.0,1.83393771]
[1725359853249,0.13025378,59101.0,59100.0,1.83393771]
[1725359853427,0.13425378,59101.0,59100.0,1.83393771]
[1725359855922,0.13425378,59101.0,59100.0,1.91854371]
[1725359856225,0.004,59101.0,59100.0,1.91854371]
[1725359856531,0.004,59101.0,59100.0,2.07546197]
[1725359857028,0.08458,59119.0,59100.0,3.01384997]
[1725359857223,0.0039,59118.0,59117.0,0.084582]
[1725359857425,0.4567,59127.0,59120.0,0.084577]
[1725359857426,0.00025378,59123.0,59120.0,0.084577]
[1725359857718,0.00025378,59123.0,59122.0,0.24228801]
[1725359857923,0.00025378,59123.0,59122.0,0.314575]
[1725359858925,0.00025378,59123.0,59122.0,0.23]
[1725359859630,0.01425378,59123.0,59122.0,0.23]
[1725359860333,0.00025378,59123.0,59122.0,0.28035826]
[1725359860631,0.00025378,59123.0,59122.0,0.231]
[1725359860632,0.01225378,59123.0,59122.0,0.231]
[1725359860831,0.01225378,59123.0,59122.0,0.28135909]
[1725359861018,0.00625378,59123.0,59122.0,0.28035909]
[1725359861222,0.00725378,59123.0,59122.0,0.29035909]
[1725359861425,0.00725378,59123.0,59122.0,0.24]
[1725359862032,0.00125378,59123.0,59122.0,0.24635386]
[1725359862233,0.00225378,59123.0,59122.0,0.24635386]
[1725359862428,0.00225378,59123.0,59122.0,0.01635386]
[1725359862831,0.00125378,59123.0,59122.0,0.01635386]
[1725359863041,0.00425378,59123.0,59122.0,0.01635386]
[1725359863235,0.00325378,59123.0,59122.0,0.00635386]
[1725359863439,0.00925378,59123.0,59122.0,0.001]
[1725359863644,0.00625378,59123.0,59122.0,0.001]
[1725359863843,0.00325378,59123.0,59121.0,0.084575]
[1725359864051,0.0004,59122.0,59121.0,0.084575]
[1725359864551,0.0004,59122.0,59121.0,0.09102777]
[1725359866450,0.0014,59122.0,59121.0,0.00645277]
[1725359866636,0.084577,59120.0,59119.0,0.3608]
[1725359866836,0.194977,59120.0,59117.0,0.05035909]
[1725359867047,0.084981,59118.0,59116.0,0.05035909]
[1725359867248,0.0004,59117.0,59115.0,0.05035909]
[1725359867447,0.0004,59116.0,59115.0,0.05035909]
[1725359867646,0.1,59116.0,59115.0,0.05035909]
[1725359868042,0.097,59116.0,59115.0,0.05035909]
[1725359868948,0.096,59116.0,59115.0,0.05035909]
[1725359869550,0.097,59116.0,59115.0,0.05535909]
[1725359869845,0.099,59116.0,59115.0,0.05535909]
[1725359870647,0.099,59116.0,59115.0,0.005]
[1725359870846,0.183583,59116.0,59115.0,0.005]
[1725359871048,0.099,59116.0,59114.0,0.19918095]
[1725359871256,0.0004,59115.0,59114.0,0.14882186]
[1725359871645,0.0004,59115.0,59114.0,0.23340786]
[1725359873456,0.0004,59115.0,59114.0,0.23540786]
[1725359875983,0.0004,59115.0,59114.0,0.30358705]
[1725359876856,0.0004,59115.0,59114.0,0.23640786]
[1725359877053,0.0004,59115.0,59114.0,1.42847386]
[1725359877362,0.0014,59115.0,59114.0,1.42647386]
[1725359877562,0.0024,59115.0,59114.0,1.43247386]
[1725359877758,0.0024,59115.0,59114.0,2.96247386]
[1725359878262,0.0024,59115.0,59114.0,3.04662607]
[1725359879049,0.0014,59115.0,59114.0,3.04562607]
[1725359879247,0.0024,59115.0,59114.0,3.17751123]
[1725359879456,0.0014,59115.0,59114.0,3.17651123]
[1725359879955,0.0004,59115.0,59114.0,3.16851123]
[1725359880163,0.0024,59115.0,59114.0,3.17851123]
[1725359881361,0.0024,59115.0,59114.0,3.09435902]
[1725359881966,0.0024,59115.0,59114.0,3.18435902]
[1725359883965,0.0024,59115.0,59114.0,3.1843602]
[1725359885864,0.0024,59115.0,59114.0,3.34123578]
[1725359887057,0.0004,59120.0,59119.0,0.084579]
[1725359887257,0.0004,59120.0,59119.0,0.30346534]
[1725359887459,0.0004,59120.0,59119.0,0.30386534]
[1725359888060,0.00025378,59123.0,59119.0,0.30386534]
[1725359888373,0.00025378,59123.0,59122.0,0.08453714]
[1725359890172,0.00325378,59123.0,59122.0,0.21342392]
[1725359890366,0.00525378,59123.0,59122.0,0.21342392]
[1725359890567,0.00525378,59123.0,59122.0,0.08453714]
[1725359890762,0.00525378,59123.0,59122.0,0.21342547]
[1725359890966,0.00525378,59123.0,59122.0,0.08453714]
[1725359891264,0.00525378,59123.0,59122.0,0.21342556]
[1725359892168,0.08982678,59123.0,59122.0,0.21342556]
[1725359892571,0.08982678,59123.0,59122.0,0.30342556]
[1725359892771,0.00525378,59123.0,59122.0,0.30342556]
[1725359893070,0.00525378,59123.0,59122.0,0.38800056]
[1725359893470,0.00525378,59123.0,59122.0,0.30386342]
[1725359893972,0.00525378,59123.0,59122.0,0.38800304]
[1725359894162,0.00525378,59123.0,59122.0,0.30386342]
[1725359894768,0.00525378,59123.0,59122.0,0.39462006]
[1725359900382,0.00525378,59123.0,59122.0,0.31048116]
[1725359902179,0.0461,59127.0,59122.0,0.22590616]
[1725359902490,0.084567,59128.0,59126.0,0.0004]
[1725359902670,0.104567,59128.0,59127.0,0.0904]
[1725359902876,0.02,59128.0,59127.0,0.174967]
[1725359903097,0.446243,59131.0,59127.0,0.58008003]
[1725359903098,0.00088,59131.0,59127.0,0.58008003]
[1725359903282,0.084559,59133.0,59130.0,0.17453146]
[1725359903588,0.084559,59133.0,59130.0,0.0904]
[1725359903885,0.084559,59133.0,59130.0,0.17453146]
[1725359904579,0.090559,59133.0,59130.0,0.0914]
[1725359904779,0.090559,59133.0,59130.0,0.175963]
[1725359905097,0.006,59133.0,59130.0,0.175963]
[1725359905280,0.006,59133.0,59130.0,0.0914]
[1725359905879,0.013,59133.0,59130.0,0.0924]
[1725359906179,0.013,59133.0,59130.0,0.17653146]
[1725359906586,0.013,59133.0,59130.0,0.0924]
[1725359906780,0.013,59133.0,59132.0,0.08456]
[1725359907373,0.013,59133.0,59132.0,0.44536]
[1725359908487,0.013,59133.0,59132.0,0.49578807]
[1725359908782,0.016,59133.0,59132.0,1.97636]
[1725359909286,0.015,59133.0,59132.0,1.97736]
[1725359912009,0.015,59133.0,59132.0,0.53736]
[1725359912181,0.006,59133.0,59132.0,0.54736]
[1725359912381,0.006,59133.0,59132.0,0.45736]
[1725359912590,0.006,59133.0,59132.0,0.54736]
[1725359912776,0.001,59133.0,59132.0,0.55636]
[1725359913183,0.00025378,59135.0,59134.0,0.084557]
[1725359913493,0.00025378,59135.0,59134.0,0.084957]
[1725359915696,0.00025378,59135.0,59134.0,0.087957]
[1725359915891,0.00025378,59135.0,59134.0,0.090957]
[1725359917787,0.00025378,59135.0,59134.0,0.451757]
[1725359918086,0.00025378,59135.0,59134.0,0.51878521]
[1725359922193,0.00025378,59135.0,59134.0,0.15798521]
[1725359922399,0.00025378,59135.0,59134.0,0.51878521]
[1725359922590,0.00025378,59135.0,59134.0,0.451757]
[1725359927095,0.08455,59140.0,59136.0,0.084555]
[1725359927292,0.08455,59140.0,59139.0,0.09]
[1725359927293,0.21455,59140.0,59139.0,0.09]
[1725359927495,0.21455,59140.0,59139.0,0.14070085]
[1725359927797,0.2991,59140.0,59139.0,0.05070085]
[1725359928098,0.2991,59140.0,59139.0,0.0004]
[1725359928099,1.49638,59140.0,59139.0,0.0004]
[1725359928396,1.36638,59140.0,59139.0,0.0004]
[1725359928597,1.47638,59140.0,59139.0,0.0004]
[1725359928792,1.52358,59140.0,59139.0,0.0004]
[1725359929193,1.53058,59140.0,59139.0,0.0014]
[1725359929400,1.53558,59140.0,59139.0,0.0024]
[1725359930910,1.62013,59140.0,59139.0,0.0024]
[1725359931899,1.62693062,59140.0,59139.0,0.0024]
[1725359933599,1.62693062,59140.0,59130.0,0.0943]
[1725359933600,0.169124,59131.0,59130.0,0.0043]
[1725359933800,0.289524,59131.0,59130.0,0.0004]
[1725359934111,1.396884,59131.0,59130.0,0.0004]
[1725359934295,1.938646,59131.0,59130.0,0.0004]
[1725359934801,0.169134,59127.0,59126.0,0.00025378]
[1725359935006,0.379134,59127.0,59126.0,0.00025378]
[1725359935299,1.483934,59127.0,59126.0,0.00025378]
[1725359935503,1.568501,59127.0,59126.0,0.00025378]
[1725359935703,0.169154,59120.0,59119.0,0.0039]
[1725359936001,0.645777,59120.0,59113.0,0.445387]
[1725359936207,0.645777,59120.0,59113.0,0.3608]
[1725359936208,0.174986,59114.0,59113.0,0.3608]
[1725359936404,0.274986,59114.0,59113.0,0.3608]
[1725359938305,0.274986,59114.0,59113.0,0.41114426]
[1725359938497,0.274986,59114.0,59113.0,0.41814426]
[1725359939299,0.276986,59114.0,59113.0,0.42514426]
[1725359939508,0.276986,59114.0,59113.0,0.3748]
[1725359940903,0.276986,59114.0,59113.0,0.014]
[1725359941299,0.361572,59114.0,59113.0,0.014]
[1725359941711,0.869052,59114.0,59113.0,0.014]